[Event "Mitropa Cup Open 2024"]
[Site "Apolda"]
[Date "2024.02.22"]
[Round "8.18"]
[White "Goroshkov, Maksym"]
[Black "Donchenko, Alexander"]
[Result "0-1"]
[ECO "B14"]
[WhiteElo "2338"]
[BlackElo "2643"]
[Annotator "RC"]
[PlyCount "132"]
[EventDate "2024.02.15"]
[EventType "team-tourn"]
[EventCountry "GER"]
[SourceTitle "playchess.com"]
[Source "ChessBase"]
[SourceQuality "1"]
[WhiteTeam "Slovenia"]
[BlackTeam "Germany"]
[WhiteTeamCountry "SLO"]
[BlackTeamCountry "GER"]
[TimeControl "40/5400+30:1800+30"]

1. e4 {[%emt 0:01:06]} c6 {[%emt 0:00:15]} 2. d4 {[%emt 0:00:07]} d5 {[%emt 0:00:05]} 3. exd5 {[%emt 0:00:05]} cxd5 {[%emt 0:00:07]} 4. c4 {[%emt 0:00:05]} Nf6 {[%emt 0:00:16]} 5. Nc3 {[%emt 0:00:13]} g6 {[%emt 0:00:23]} 6. cxd5 {[%emt 0:00:40]} Bg7 {[%emt 0:00:34]} 7. Bb5+ {[%emt 0:00:16]} Nbd7 {[%emt 0:08:56]} 8. d6 {[%emt 0:00:11]} e6 {[%emt 0:01:41]} 9. d5 {[%emt 0:11:12]} e5 {[%emt 0:05:25]} 10. Nf3 {[%emt 0:03:05]} O-O {[%emt 0:01:05]} 11. O-O {[%emt 0:00:37]} e4 {[%emt 0:26:12]} 12. Ng5 {[%emt 0:02:06]} Nc5 {[%emt 0:01:11]} 13. b4 {[%emt 0:12:24]} Na6 {[%emt 0:01:58]} 14. Rb1 {[%emt 0:15:31]} Bf5 {[%emt 0:01:49]} 15. Re1 {[%emt 0:09:51]} e3 {[%emt 0:02:35]} 16. Bxe3 {[%emt 0:02:21]} Bxb1 {[%emt 0:09:25]} 17. Ne6 {[%emt 0:00:35]} Qxd6 {[%emt 0:05:31]} 18. Bc5 {[%emt 0:00:11]} Nxc5 {[%emt 0:01:59]} 19. bxc5 {[%emt 0:00:07]} Qb8 {[%emt 0:00:35]} 20. Nxg7 {[%emt 0:01:44]} Kxg7 {[%emt 0:03:54]} 21. Qxb1 {[%emt 0:00:38]} Qc7 {[%emt 0:00:31]} 22. c6 {[%emt 0:05:12]} Rad8 {[%emt 0:02:13]} 23. Qa1 {[%emt 0:06:25]} Kg8 {[%emt 0:00:42]} 24. cxb7 {[%emt 0:00:08]} Qxb7 {[%emt 0:01:46]} 25. Bc6 {[%emt 0:00:12]} Qb4 {[%emt 0:01:05]} 26. Qc1 {[%emt 0:02:17]} Qc5 {[%emt 0:02:48]} 27. h3 {[%emt 0:02:06]} Rb8 {[%emt 0:02:29]} 28. Qe3 {[%emt 0:00:33]} Qxe3 {[%emt 0:01:31]} 29. Rxe3 {[%emt 0:00:07]} Rb2 {[%emt 0:03:08]} 30. Rd3 {[%emt 0:05:12]} Rd8 {[%emt 0:00:49]} 31. Ba4 {[%emt 0:00:53]} Nd7 {[%emt 0:01:57]} 32. Re3 {[%emt 0:03:14]} Kf8 {[%emt 0:00:57]} 33. Bc6 {[%emt 0:01:34]} a6 {[%emt 0:03:29]} 34. g4 {[%emt 0:01:15]} h6 {[%emt 0:00:56]} 35. Kg2 {[%emt 0:00:51]} Nb6 {[%emt 0:01:54]} 36. Rf3 {[%emt 0:03:39]} Nc4 {[%emt 0:02:22]} 37. Ba4 {[%emt 0:02:06]} Kg7 {[%emt 0:01:11]} 38. Nd1 {[%emt 0:04:50]} Rd2 {[%emt 0:02:05]} 39. Nc3 {[%emt 0:01:01]} Ne5 {[%emt 0:00:50]} 40. Re3 {[%emt 0:00:19]} Nd3 {[%emt 0:02:36]} 41. Ne4 {[%emt 0:32:21]} Nf4+ {[%emt 0:31:06]} 42. Kf3 {[%emt 0:00:38]} Rd4 {[%emt 0:00:00]} 43. Kxf4 {[%emt 0:00:00]} Rxa4 {[%emt 0:00:00]} 44. Kf3 {[%emt 0:00:00]} Rxa2 {[%emt 0:00:00]} 45. Rd3 {[%emt 0:00:00]} Ra5 {[%emt 0:00:00]} 46. d6 {[%emt 0:00:00]} Rb5 {[%emt 0:00:00]} 47. h4 {[%emt 0:00:00]} f5 {[%emt 0:00:00]} 48. gxf5 {[%emt 0:00:00]} gxf5 {[%emt 0:00:00]} 49. Nd2 {[%emt 0:00:00]} Kf6 {[%emt 0:00:00]} 50. Nc4 {[%emt 0:00:00]} Rb4 {[%emt 0:00:00]} 51. Ne3 {[%emt 0:00:00]} Ke6 {[%emt 0:00:00]} 52. Nd5 {[%emt 0:00:00]} Ra4 {[%emt 0:00:00]} 53. Nf4+ {[%emt 0:00:00]} Kf6 {[%emt 0:00:00]} 54. d7 {[%emt 0:00:00]} Ke7 {[%emt 0:00:00]} 55. Ng6+ {[%emt 0:00:00]} Kf7 {[%emt 0:00:00]} 56. Rd6 {[%emt 0:00:00]} Re4 {[%emt 0:00:00]} 57. Rxa6 {[%emt 0:00:00]} Re6 {[%emt 0:00:00]} 58. Rxe6 {[%emt 0:00:00]} Kxe6 {[%emt 0:00:00]} 59. Kf4 {[%emt 0:00:00]} Ra8 {[%emt 0:00:00]} 60. Ne5 {[%emt 0:00:00]} Ra4+ {[%emt 0:00:00]} 61. Kg3 {[%emt 0:00:00]} Rd4 {[%emt 0:00:00]} 62. f4 {[%emt 0:00:00]} Rxd7 {[%emt 0:00:00]} 63. Nxd7 {[%emt 0:00:00]} Kxd7 {[%emt 0:00:00]} 64. Kf3 {[%emt 0:00:00]} Kd6 {[%emt 0:00:00]} 65. Ke3 {[%emt 0:00:00]} Kd5 {[%emt 0:00:00]} 66. Kd3 {[%emt 0:00:00]} h5 {[%emt 0:00:00]} 0-1

[Event "Mitropa Cup Open 2024"]
[Site "Apolda"]
[Date "2024.02.22"]
[Round "8.19"]
[White "Kollars, Dmitrij"]
[Black "Lavrencic, Matic"]
[Result "1-0"]
[ECO "B40"]
[WhiteElo "2632"]
[BlackElo "2299"]
[Annotator "TA"]
[PlyCount "77"]
[EventDate "2024.02.15"]
[EventType "team-tourn"]
[EventCountry "GER"]
[SourceTitle "playchess.com"]
[Source "ChessBase"]
[SourceQuality "1"]
[WhiteTeam "Germany"]
[BlackTeam "Slovenia"]
[WhiteTeamCountry "GER"]
[BlackTeamCountry "SLO"]
[TimeControl "40/5400+30:1800+30"]

{[%evp 15,77,20,14,9,29,24,26,25,37,19,31,6,19,5,26,14,14,13,3,1,6,4,0,1,1,7,5,5,4,4,25,22,20,24,31,3,17,-8,16,20,54,56,82,65,83,83,72,78,64,32,86,87,86,75,113,133,228,211,430,430,529,520,29995,29996]} 1. e4 {[%emt 0:00:07]} c5 {[%emt 0:00:26]} 2. Nf3 {[%emt 0:00:10]} e6 {[%emt 0:00:15]} 3. d4 {[%emt 0:00:25]} cxd4 {[%emt 0:00:27]} 4. Nxd4 {[%emt 0:00:05]} Nf6 {[%emt 0:00:08]} 5. Bd3 {[%emt 0:00:28]} Nc6 {[%emt 0:02:13]} 6. Nxc6 {[%emt 0:00:11]} dxc6 {[%emt 0:07:29]} 7. O-O {[%emt 0:00:16]} e5 {[%emt 0:00:28]} 8. Nd2 {[%emt 0:00:12]} Bc5 {[%emt 0:03:16]} 9. a4 {[%emt 0:01:14]} a5 {[%emt 0:03:48]} 10. Nc4 {[%emt 0:04:52]} Qc7 {[%emt 0:05:06]} 11. Bg5 {[%emt 0:08:44] White has an edge.} Nd7 {[%emt 0:06:14]} 12. Bd2 {[%emt 0:12:25]} O-O {[%emt 0:04:51]} 13. Qf3 {[%emt 0:05:18]} Re8 {[%emt 0:13:02]} 14. Qg3 {[%emt 0:02:58]} Nf8 {[%emt 0:01:16]} 15. Rfd1 {[%emt 0:08:22]} b6 {[%emt 0:08:38]} 16. c3 {[%emt 0:02:35]} Ba6 {[%emt 0:02:43]} 17. Be3 {[%emt 0:06:43]} Nd7 {[%emt 0:09:31]} 18. Bf1 {[%emt 0:02:04]} Bxe3 {[%emt 0:04:31]} 19. Qxe3 {[%emt 0:00:39][%cal Od1d7]} Bxc4 {[%emt 0:02:14]} 20. Bxc4 {[%emt 0:00:01]} Nc5 {[%emt 0:03:00]} 21. g3 {[%emt 0:04:07]} h6 {[%emt 0:06:17]} 22. Kg2 {[%emt 0:05:00]} Red8 {[%emt 0:00:32]} 23. Rxd8+ {[%emt 0:01:13]} Rxd8 {[%emt 0:01:26]} 24. b4 {[%emt 0:00:07]} Nb7 {[%emt 0:00:31]} 25. bxa5 {[%emt 0:03:10]} Nxa5 {[%emt 0:04:36]} 26. Ba2 {[%emt 0:00:04]} Ra8 {[%emt 0:04:38]} 27. Rb1 {[%emt 0:01:04]} Rb8 {[%emt 0:04:45]} 28. Rb2 {[%emt 0:01:37]} Qd8 {[%emt 0:01:37]} 29. h4 {[%emt 0:05:58][%cal Bh2h4,Bh4h5][%mdl 32]} Rb7 {[%emt 0:00:19]} 30. Rd2 {[%emt 0:02:37]} Qe7 {[%emt 0:00:26]} 31. h5 {[%emt 0:00:06]} Rb8 {[%emt 0:00:26]} 32. Qd3 {[%emt 0:07:17]} Kf8 {[%emt 0:00:37]} ({Better is} 32... Nb7 $1 $14) 33. Qf3 $16 {[%emt 0:02:05] Qd1 would now be deadly.} Nb7 {[%emt 0:00:40]} 34. Qf5 {[%emt 0:00:12] White is more active.} Rd8 {[%emt 0:00:18] [#] Against Rd7} 35. Rb2 $40 {[%emt 0:01:53][%cal Bd2b2,Bb2b6,Bb6a6,Ba6a7][%mdl 160] White goes for the king.} Nd6 {[%emt 0:00:35]} (35... Qc7 $16) 36. Qh7 $18 {[%emt 0:00:02][%cal Rh7h8]} Qf6 $2 {[%emt 0:00:32]} (36... Qg5 37. Rxb6 Qg4) 37. Rxb6 {[%emt 0:00:07]} Rc8 {[%emt 0:00:25]} 38. Ra6 {[%emt 0:04:17]} Qg5 {[%emt 0:00:42]} (38... g6 $18 39. hxg6 (39. Qxh6+ Qg7 $18) 39... Qg7 40. Qxg7+ (40. Ra7 Qxh7 41. gxh7 Kg7 $18) 40... Kxg7 41. gxf7 Rc7) 39. Ra7 {[%emt 0:00:46] Weighted Error Value: White=0.06 (flawless) /Black=0.48.  Mistake:       	---       	Black=4      Inaccurate:     	White=2     	Black=3      OK:         	White=12    	Black=9      Best:        	White=4     	Black=2} 1-0

[Event "Mitropa Cup Open 2024"]
[Site "Apolda"]
[Date "2024.02.22"]
[Round "8.20"]
[White "Olenik Campa, Rudi"]
[Black "Svane, Frederik"]
[Result "1/2-1/2"]
[ECO "B51"]
[WhiteElo "2299"]
[BlackElo "2625"]
[Annotator "TA"]
[PlyCount "82"]
[EventDate "2024.02.15"]
[EventType "team-tourn"]
[EventCountry "GER"]
[SourceTitle "playchess.com"]
[Source "ChessBase"]
[SourceQuality "1"]
[WhiteTeam "Slovenia"]
[BlackTeam "Germany"]
[WhiteTeamCountry "SLO"]
[BlackTeamCountry "GER"]
[TimeControl "40/5400+30:1800+30"]

{[%evp 9,82,13,28,11,22,16,26,26,20,26,8,9,29,25,23,17,39,14,14,0,0,0,0,13,26,0,0,0,0,-16,-26,-23,-13,-14,-8,-59,-31,-20,-20,-71,-22,-30,-28,-81,-78,-99,-92,-80,0,-100,-92,-113,-67,-89,-82,-82,-83,-109,-86,-69,-58,-61,-47,-47,-39,-44,-47,-52,-20,-20,-16,-20,-20,-40,-33]} 1. e4 {[%emt 0:00:02]} c5 {[%emt 0:00:27]} 2. Nf3 {[%emt 0:00:05]} d6 {[%emt 0:00:15]} 3. Bb5+ {[%emt 0:00:29]} Nd7 {[%emt 0:00:05]} 4. a4 {[%emt 0:09:50]} a6 {[%emt 0:00:29]} 5. Be2 {[%emt 0:00:05]} Ngf6 {[%emt 0:01:12]} 6. Nc3 {[%emt 0:00:06]} b6 {[%emt 0:00:22]} 7. d4 {[%emt 0:01:21]} cxd4 {[%emt 0:00:12]} 8. Qxd4 {[%emt 0:00:52] White has an edge.} Bb7 {[%emt 0:00:06]} 9. O-O {[%emt 0:01:47]} e6 {[%emt 0:00:11]} 10. Rd1 {[%emt 0:04:59]} Qc7 {[%emt 0:00:10]} 11. Be3 {[%emt 0:03:13]} Ng4 {[%emt 0:00:27]} 12. Bg5 {[%emt 0:03:38]} Nge5 {[%emt 0:00:18]} 13. Nd2 {[%emt 0:10:51]} Rc8 {[%emt 0:07:13]} 14. Qe3 {[%emt 0:10:18]} h6 {[%emt 0:17:28]} 15. Qh3 {[%emt 0:01:26]} Rg8 {[%emt 0:27:11]} 16. Be3 {[%emt 0:02:21] aiming for f4.} g5 {[%emt 0:00:06]} 17. f4 {[%emt 0:04:28]} gxf4 {[%emt 0:00:22]} 18. Bxf4 {[%emt 0:00:03][%cal Od1f1]} Nf6 {[%emt 0:09:47]} 19. Bxe5 {[%emt 0:07:51]} Qc5+ {[%emt 0:03:00]} 20. Kh1 {[%emt 0:00:05]} Qxe5 {[%emt 0:00:03]} 21. Rf1 {[%emt 0:09:21]} Be7 {[%emt 0:01:52]} (21... Bxe4 $2 22. Ndxe4 (22. Bxa6 $2 Bxg2+ 23. Qxg2 Rxg2 $19) 22... Nxe4 23. Nxe4 (23. Bxa6 Rxc3 24. bxc3 Rg5 $16) 23... Qxe4 24. Rae1 $18 (24. Bxa6 Rxc2 25. Bd3 Qxg2+ 26. Qxg2 Rcxg2 $19)) 22. Rad1 {[%emt 0:02:02]} (22. Rf2 $11) 22... Rg6 {[%emt 0:01:27]} (22... Bxe4 23. Ncxe4 Nxe4 24. Nxe4 (24. Bxa6 Rxc2 25. Bb5+ Kd8 $11) 24... Qxe4 25. Bh5 $16) 23. Rf2 {[%emt 0:07:47]} Qc5 {[%emt 0:07:54]} (23... Bxe4 $6 24. Ndxe4 Nxe4 25. Nxe4 Qxe4 26. Bxa6 $16) 24. Rdf1 {[%emt 0:00:25]} (24. Rf4 $11 {remains equal.}) 24... Kd7 {[%emt 0:00:08]} (24... Qb4 $17 25. Nb3 Nxe4 (25... Bxe4 $2 26. Nxe4 Nxe4 27. Rxf7 $18)) 25. Nb3 {[%emt 0:06:09][%cal Bd2b3,Bb3c1,Bc1d3][%mdl 32]} Qg5 {[%emt 0:00:30]} 26. Bf3 {[%emt 0:02:47]} (26. Nd2 $11) 26... Kc7 $17 {[%emt 0:08:47]} 27. Nc1 {[%emt 0:03:59]} h5 {[%emt 0:02:46]} 28. Nd3 {[%emt 0:00:13][%cal Oa4a5]} Ng4 {[%emt 0:00:12]} (28... Rg7 $17 29. Re2 (29. e5 Ng4 $15) 29... Ng4) 29. Re2 {[%emt 0:00:40]} (29. Bxg4 $11 {keeps the balance.} hxg4 30. Qg3) 29... Kb8 {[%emt 0:00:55]} 30. Qg3 {[%emt 0:01:41]} Ne5 {[%emt 0:04:05]} (30... Ne3 $17 {[%cal Og5g3] Strongly threatening ...Qxg3!} 31. Qxg5 Bxg5) 31. Qxg5 {[%emt 0:02:13]} Rxg5 {[%emt 0:00:01]} 32. Nxe5 {[%emt 0:00:32]} ({Avoid the trap} 32. h4 $2 Rg7 33. Nxe5 dxe5 $19) 32... Rxe5 {[%emt 0:00:06]} 33. Nd1 {[%emt 0:03:12]} Rec5 {[%emt 0:02:21]} 34. c3 {[%emt 0:00:04][%cal Oe4e5]} Bc6 {[%emt 0:03:54]} 35. b3 {[%emt 0:00:04]} Be8 {[%emt 0:00:23]} 36. c4 {[%emt 0:00:55]} b5 {[%emt 0:00:40]} 37. axb5 {[%emt 0:00:04]} axb5 {[%emt 0:00:03]} 38. Nb2 {[%emt 0:00:05]} bxc4 {[%emt 0:00:25]} 39. Nxc4 {[%emt 0:00:48]} Bb5 {[%emt 0:02:20]} 40. Rd1 {[%emt 0:00:41]} Kc7 {[%emt 0:00:49][%cal Oh5h4]} 41. Ra2 {[%emt 0:03:18]} Bxc4 {[%emt 0:06:06] Weighted Error Value: White=0.15 (very precise) /Black=0.11 (very precise) .  Mistake:       	White=4     	Black=3      Inaccurate:     	White=2     	Black=2      OK:         	White=15    	Black=14     Best:        	---       	Black=1} 1/2-1/2

[Event "Mitropa Cup Open 2024"]
[Site "Apolda"]
[Date "2024.02.23"]
[Round "9.1"]
[White "Subelj, Jan"]
[Black "Krstulovic, Alex"]
[Result "0-1"]
[ECO "E90"]
[WhiteElo "2512"]
[BlackElo "2414"]
[Annotator "TA"]
[PlyCount "60"]
[EventDate "2024.02.15"]
[EventType "team-tourn"]
[EventCountry "GER"]
[SourceTitle "playchess.com"]
[Source "ChessBase"]
[SourceQuality "1"]
[WhiteTeam "Slovenia"]
[BlackTeam "Hungary"]
[WhiteTeamCountry "SLO"]
[BlackTeamCountry "HUN"]
[TimeControl "40/5400+30:1800+30"]

{[%evp 10,60,41,27,52,47,57,40,33,37,43,37,38,38,34,39,35,28,27,0,0,-3,0,-28,-9,-25,-14,-52,-41,-53,-50,-52,-39,-50,-63,-118,-109,-138,-154,-148,-144,-149,-146,-610,-610,-837,-834,-806,-785,-1136,-1090,-1075,-851]} 1. c4 {[%emt 0:00:24]} Nf6 {[%emt 0:00:06]} 2. Nf3 {[%emt 0:00:14]} g6 {[%emt 0:00:06]} 3. Nc3 {[%emt 0:00:10]} Bg7 {[%emt 0:00:03]} 4. e4 {[%emt 0:00:20]} d6 {[%emt 0:00:03]} 5. d4 {[%emt 0:00:09][%cal Bd2d4,Bd4d5][%mdl 32]} Bg4 {[%emt 0:00:02]} 6. Be3 {[%emt 0:04:37]} Nbd7 {[%emt 0:04:15]} 7. Be2 {[%emt 0:02:16]} e5 {[%emt 0:01:52]} 8. d5 {[%emt 0:01:13]} Bxf3 {[%emt 0:00:05] White is slightly better.} 9. Bxf3 {[%emt 0:00:05]} h5 {[%emt 0:00:04]} 10. h4 {[%emt 0:07:15]} Bh6 {[%emt 0:02:28]} 11. Bxh6 {[%emt 0:00:11]} Rxh6 {[%emt 0:00:03]} 12. g3 {[%emt 0:00:10]} Kf8 {[%emt 0:01:45]} 13. Rc1 {[%emt 0:01:05]} Kg7 {[%emt 0:01:07]} 14. b4 {[%emt 0:01:09]} Rh8 {[%emt 0:02:42]} 15. Na4 {[%emt 0:04:36]} a5 {[%emt 0:03:04]} 16. a3 {[%emt 0:00:05]} Qb8 {[%emt 0:04:24] White should prevent ...axb4.} 17. O-O {[%emt 0:01:48]} Qa7 {[%emt 0:04:58] [#] Hoping for ...axb4.} 18. Nc3 {[%emt 0:01:48]} axb4 $1 {[%emt 0:00:38]} 19. axb4 {[%emt 0:00:05]} Qa3 {[%emt 0:00:45]} 20. Nb5 {[%emt 0:02:43][%csl LRa3,LRc7]} Qxb4 {[%emt 0:02:16] Strongly threatening ...Qc5.} 21. Nxc7 {[%emt 0:01:04]} Rac8 {[%emt 0:05:19]} 22. Nb5 {[%emt 0:01:13]} (22. Rb1 $1 $15 Qxc4 23. Nb5) 22... Rxc4 $17 {[%emt 0:00:52]} 23. Qe2 {[%emt 0:00:53]} Rxc1 {[%emt 0:06:30]} 24. Rxc1 {[%emt 0:00:10]} Ra8 {[%emt 0:01:10] aiming for ...Ra5.} 25. Qc4 {[%emt 0:02:38]} Qb2 {[%emt 0:05:17] ...Ra5 would now be deadly.} 26. Kg2 $2 {[%emt 0:02:49][%mdl 8192] This costs White the game.} (26. Nxd6 $2 {is the wrong capture.} Qa3 27. Nxf7 Kxf7 $19 (27... Qxf3 28. Ng5 $17)) (26. Qf1 $17) 26... Ra5 $19 {[%emt 0:01:38] Black is clearly winning.} 27. Be2 {[%emt 0:02:16] [#]} Rxb5 $1 {[%emt 0:00:21][%mdl 512]} 28. Rc2 {[%emt 0:02:54]} Qb3 {[%emt 0:00:08]} 29. Qxb5 {[%emt 0:00:16]} Qxc2 {[%emt 0:00:06]} 30. Bd3 {[%emt 0:00:08]} Qc7 {[%emt 0:00:08] Weighted Error Value: White=0.75/Black=0.02 (flawless) .  Loses game:     	White=1     	---        Mistake:       	White=1     	---        Inaccurate:     	White=4     	---        OK:         	White=3     	Black=11     Best:        	White=3     	Black=3      Strong:       	---       	Black=1} 0-1

[Event "Mitropa Cup Open 2024"]
[Site "Apolda"]
[Date "2024.02.23"]
[Round "9.2"]
[White "Juhasz, Agoston"]
[Black "Goroshkov, Maksym"]
[Result "1/2-1/2"]
[ECO "C24"]
[WhiteElo "2410"]
[BlackElo "2338"]
[Annotator "TA"]
[PlyCount "80"]
[EventDate "2024.02.15"]
[EventType "team-tourn"]
[EventCountry "GER"]
[SourceTitle "playchess.com"]
[Source "ChessBase"]
[SourceQuality "1"]
[WhiteTeam "Hungary"]
[BlackTeam "Slovenia"]
[WhiteTeamCountry "HUN"]
[BlackTeamCountry "SLO"]
[TimeControl "40/5400+30:1800+30"]

{[%evp 11,80,48,50,41,44,37,52,38,47,50,62,64,64,60,70,38,43,37,38,29,38,17,21,0,59,57,52,38,54,13,18,10,19,2,35,11,47,35,25,0,0,0,0,0,0,0,9,6,9,8,16,0,0,0,0,0,0,0,0,0,0,0,8,0,0,0,0,0,8,8,22]} 1. e4 {[%emt 0:00:06]} e5 {[%emt 0:00:12]} 2. Nf3 {[%emt 0:00:08]} Nc6 {[%emt 0:00:04]} 3. Bc4 {[%emt 0:00:27]} Nf6 {[%emt 0:00:06][%cal Bg8f6,Bf6d5,Bd5b6][%mdl 32]} 4. d3 {[%emt 0:00:06]} d5 {[%emt 0:00:05]} 5. exd5 {[%emt 0:00:15]} Nxd5 {[%emt 0:00:04]} 6. O-O {[%emt 0:00:21]} Nb6 {[%emt 0:00:03]} 7. Bb5 {[%emt 0:00:54]} Bd6 {[%emt 0:00:06] [#]} 8. Nxe5 $1 {[%emt 0:03:54]} Bxe5 {[%emt 0:00:04]} 9. Bxc6+ {[%emt 0:00:13] White is slightly better.} bxc6 {[%emt 0:00:04]} 10. Re1 {[%emt 0:00:07]} Qe7 {[%emt 0:00:04]} 11. Kh1 {[%emt 0:04:23]} O-O {[%emt 0:00:10] [#] Threatens to win with ...Qd6.} 12. f4 {[%emt 0:00:29]} f6 {[%emt 0:00:23][%cal Oc6c5]} 13. Nc3 {[%emt 0:07:25]} Nd5 {[%emt 0:05:08]} 14. fxe5 {[%emt 0:09:43]} Nxc3 {[%emt 0:00:36]} 15. bxc3 {[%emt 0:01:21] Hoping for exf6.} fxe5 {[%emt 0:00:06]} 16. Rb1 {[%emt 0:19:43]} a5 {[%emt 0:19:51]} 17. c4 {[%emt 0:08:20]} Rf2 {[%emt 0:14:58]} ({Better is} 17... Bf5 $11) 18. Be3 $14 {[%emt 0:03:59]} Rf5 {[%emt 0:00:20]} 19. Qe2 {[%emt 0:05:40]} Bd7 {[%emt 0:02:31]} 20. Bd4 {[%emt 0:07:45]} Re8 {[%emt 0:00:52]} 21. Bc3 {[%emt 0:02:17]} a4 {[%emt 0:00:24]} 22. Qe3 {[%emt 0:07:50]} Qh4 {[%emt 0:09:07]} 23. Rf1 {[%emt 0:01:24]} Qe7 {[%emt 0:05:33]} (23... e4 {is more complex.} 24. Rxf5 Bxf5 25. Qc5 Bg6) 24. Rxf5 {[%emt 0:03:10]} Bxf5 {[%emt 0:00:05]} 25. Re1 {[%emt 0:04:43]} e4 $1 {[%emt 0:02:09] The position is equal.} ({Much weaker is} 25... Qa3 $6 26. Bxe5 Qxa2 27. Qa7 $16) 26. Qd4 {[%emt 0:02:11]} Qd7 {[%emt 0:06:34]} 27. Qxd7 {[%emt 0:02:59]} Bxd7 {[%emt 0:00:04]} 28. dxe4 $11 {[%emt 0:00:21][%mdl 4096] Endgame. KRB-KRB} (28. Rxe4 Rxe4 29. dxe4 c5 $17) 28... Be6 {[%emt 0:00:24]} 29. a3 {[%emt 0:01:05]} Bxc4 {[%emt 0:00:10]} 30. Kg1 {[%emt 0:00:35]} Rf8 {[%emt 0:01:54]} 31. Rd1 {[%emt 0:01:41]} Rf4 {[%emt 0:01:16]} 32. Rd8+ {[%emt 0:01:01]} Kf7 $1 {[%emt 0:00:04][%csl Gc4][%cal Rf4f1]} 33. h3 {[%emt 0:00:37]} (33. Rd7+ Ke6 34. Rd1 Rxe4 35. Bxg7 c5 $15) 33... Rxe4 {[%emt 0:00:14]} 34. Rd7+ {[%emt 0:01:36]} Re7 {[%emt 0:00:06]} 35. Rxe7+ {[%emt 0:00:33]} Kxe7 {[%emt 0:00:06]} 36. Bxg7 {[%emt 0:00:03] KB-KB} h5 {[%emt 0:02:06]} 37. Be5 {[%emt 0:00:27]} Ke6 {[%emt 0:00:23]} 38. Bxc7 {[%emt 0:00:43]} Kd5 {[%emt 0:00:37]} 39. Kf2 {[%emt 0:00:06]} Kd4 {[%emt 0:00:08]} 40. Ba5 {[%emt 0:00:34]} Bd5 {[%emt 0:00:23] Weighted Error Value: White=0.09 (flawless) /Black=0.07 (flawless) .  Mistake:       	---       	Black=1      Inaccurate:     	White=2     	Black=2      OK:         	White=12    	Black=14     Best:        	White=2     	---        Strong:       	---       	Black=2} 1/2-1/2

[Event "Mitropa Cup Open 2024"]
[Site "Apolda"]
[Date "2024.02.23"]
[Round "9.3"]
[White "Lavrencic, Matic"]
[Black "Vanczak, Tamas"]
[Result "1/2-1/2"]
[ECO "B90"]
[WhiteElo "2299"]
[BlackElo "2431"]
[Annotator "RC"]
[PlyCount "78"]
[EventDate "2024.02.15"]
[EventType "team-tourn"]
[EventCountry "GER"]
[SourceTitle "playchess.com"]
[Source "ChessBase"]
[SourceQuality "1"]
[WhiteTeam "Slovenia"]
[BlackTeam "Hungary"]
[WhiteTeamCountry "SLO"]
[BlackTeamCountry "HUN"]
[TimeControl "40/5400+30:1800+30"]

1. e4 {[%emt 0:00:16]} c5 {[%emt 0:00:14]} 2. Nf3 {[%emt 0:00:18]} d6 {[%emt 0:00:13]} 3. d4 {[%emt 0:00:10]} cxd4 {[%emt 0:00:06]} 4. Nxd4 {[%emt 0:00:11]} Nf6 {[%emt 0:00:06]} 5. Nc3 {[%emt 0:00:09]} a6 {[%emt 0:00:05]} 6. Be3 {[%emt 0:00:12]} e5 {[%emt 0:00:51]} 7. Nf3 {[%emt 0:00:36]} Qc7 {[%emt 0:05:27]} 8. a4 {[%emt 0:01:31]} h6 {[%emt 0:08:52]} 9. Be2 {[%emt 0:03:01]} Be6 {[%emt 0:01:53]} 10. a5 {[%emt 0:02:27]} Nbd7 {[%emt 0:01:31]} 11. O-O {[%emt 0:05:12]} Be7 {[%emt 0:05:26]} 12. Nd5 {[%emt 0:01:36]} Nxd5 {[%emt 0:02:25]} 13. exd5 {[%emt 0:00:08]} Bf5 {[%emt 0:00:09]} 14. c4 {[%emt 0:00:42]} Bh7 {[%emt 0:03:12]} 15. Nd2 {[%emt 0:02:27]} O-O {[%emt 0:12:34]} 16. b4 {[%emt 0:01:38]} e4 {[%emt 0:13:24]} 17. Nb3 {[%emt 0:05:07]} Ne5 {[%emt 0:02:51]} 18. Rc1 {[%emt 0:04:19]} Qd7 {[%emt 0:01:39]} 19. Nd4 {[%emt 0:01:05]} Rfe8 {[%emt 0:05:53]} 20. Qb3 {[%emt 0:04:35]} Rac8 {[%emt 0:01:00]} 21. h3 {[%emt 0:02:56]} Qd8 {[%emt 0:08:53]} 22. Rfd1 {[%emt 0:05:09]} Nd3 {[%emt 0:01:51]} 23. Bxd3 {[%emt 0:00:38]} exd3 {[%emt 0:00:06]} 24. Nf3 {[%emt 0:01:26]} Bf6 {[%emt 0:05:29]} 25. Qa2 {[%emt 0:12:38]} Re4 {[%emt 0:09:19]} 26. Nd2 {[%emt 0:04:48]} Re8 {[%emt 0:00:36]} 27. Nf3 {[%emt 0:00:21]} Bg6 {[%emt 0:00:45]} 28. Qd2 {[%emt 0:11:40]} Qd7 {[%emt 0:02:01]} 29. Ne1 {[%emt 0:00:40]} Re4 {[%emt 0:00:45]} 30. c5 {[%emt 0:05:25]} dxc5 {[%emt 0:00:38]} 31. Nxd3 {[%emt 0:00:32]} Qxd5 {[%emt 0:01:29]} 32. Nxc5 {[%emt 0:00:47]} Qxd2 {[%emt 0:01:14]} 33. Bxd2 {[%emt 0:00:15]} Rd4 {[%emt 0:02:17]} 34. Be1 {[%emt 0:06:49]} Rcd8 {[%emt 0:02:49]} 35. Rxd4 {[%emt 0:00:49]} Rxd4 {[%emt 0:00:01]} 36. Nxb7 {[%emt 0:06:05]} Bg5 {[%emt 0:00:30]} 37. Ra1 {[%emt 0:01:03]} Be7 {[%emt 0:01:41]} 38. Nc5 {[%emt 0:01:01]} Bxc5 {[%emt 0:00:06]} 39. bxc5 {[%emt 0:00:03]} Rc4 {[%emt 0:00:08]} 1/2-1/2